[Event "Late-Titled-Tuesday-Blitz-December-26-2023"]
[Site "Chess.com"]
[Date "2023.12.26"]
[Round "5"]
[White "dosto07"]
[Black "BardArtem"]
[Result "0-1"]
[WhiteElo "2529"]
[BlackElo "2679"]
[TimeControl "180+1"]
[EndTime "14:57:13 PST"]
[Termination "BardArtem won by checkmate"]

1. e4 {[%clk 0:03:00.9]} 1... c6 {[%clk 0:02:56.3]} 2. d4 {[%clk 0:03:00.4]}
2... d5 {[%clk 0:02:57.2]} 3. exd5 {[%clk 0:03:00.9]} 3... cxd5 {[%clk
0:02:58.1]} 4. Bd3 {[%clk 0:03:00.7]} 4... Nc6 {[%clk 0:02:58]} 5. c3 {[%clk
0:03:01.1]} 5... Nf6 {[%clk 0:02:58.2]} 6. Bf4 {[%clk 0:03:00.6]} 6... g6 {[%clk
0:02:58.3]} 7. Nf3 {[%clk 0:02:59.9]} 7... Bf5 {[%clk 0:02:54.5]} 8. Bxf5 {[%clk
0:02:58]} 8... gxf5 {[%clk 0:02:53]} 9. O-O {[%clk 0:02:58.9]} 9... e6 {[%clk
0:02:50.8]} 10. Ne5 {[%clk 0:02:55.9]} 10... Nxe5 {[%clk 0:02:49.2]} 11. Bxe5
{[%clk 0:02:55.9]} 11... Bd6 {[%clk 0:02:48.8]} 12. Qe2 {[%clk 0:02:47.1]} 12...
Bxe5 {[%clk 0:02:47.7]} 13. Qxe5 {[%clk 0:02:46.5]} 13... Rg8 {[%clk 0:02:45.9]}
14. Nd2 {[%clk 0:02:41.2]} 14... Ng4 {[%clk 0:02:40.9]} 15. Qf4 {[%clk
0:02:38.4]} 15... Qg5 {[%clk 0:02:34.3]} 16. Qxg5 {[%clk 0:02:38.3]} 16... Rxg5
{[%clk 0:02:35.2]} 17. Nf3 {[%clk 0:02:38.5]} 17... Rg7 {[%clk 0:02:34]} 18.
Rfe1 {[%clk 0:02:36]} 18... Ke7 {[%clk 0:02:34.1]} 19. Ne5 {[%clk 0:02:29.1]}
19... Nf6 {[%clk 0:02:31.3]} 20. Kf1 {[%clk 0:02:16.8]} 20... Rag8 {[%clk
0:02:28.6]} 21. g3 {[%clk 0:02:14]} 21... h5 {[%clk 0:02:26.4]} 22. Nd3 {[%clk
0:02:09.7]} 22... h4 {[%clk 0:02:20.7]} 23. Nf4 {[%clk 0:02:09.4]} 23... hxg3
{[%clk 0:02:16.1]} 24. hxg3 {[%clk 0:02:09.3]} 24... Kd7 {[%clk 0:02:09.3]} 25.
Ke2 {[%clk 0:02:04.7]} 25... Rh7 {[%clk 0:02:07.2]} 26. Rh1 {[%clk 0:02:03.9]}
26... Rgh8 {[%clk 0:02:07]} 27. Rxh7 {[%clk 0:02:02.4]} 27... Rxh7 {[%clk
0:02:07.9]} 28. Nd3 {[%clk 0:01:53.8]} 28... Ne4 {[%clk 0:02:03]} 29. Ne5+
{[%clk 0:01:47.3]} 29... Kd6 {[%clk 0:02:02.1]} 30. Nf3 {[%clk 0:01:41]} 30...
f6 {[%clk 0:01:58.7]} 31. Nh4 {[%clk 0:01:32.8]} 31... f4 {[%clk 0:01:51.1]} 32.
Kf3 {[%clk 0:01:23.6]} 32... fxg3 {[%clk 0:01:44.9]} 33. fxg3 {[%clk 0:01:23.8]}
33... Rh5 {[%clk 0:01:44.4]} 34. Rh1 {[%clk 0:01:19.7]} 34... b5 {[%clk
0:01:17.4]} 35. g4 {[%clk 0:01:13.5]} 35... Rh7 {[%clk 0:01:16.7]} 36. Kf4
{[%clk 0:00:53.7]} 36... e5+ {[%clk 0:00:54.7]} 37. Ke3 {[%clk 0:00:43.3]} 37...
Ke6 {[%clk 0:00:50.9]} 38. Rh2 {[%clk 0:00:34.1]} 38... Nd6 {[%clk 0:00:15.6]}
39. Nf3 {[%clk 0:00:25.7]} 39... Rxh2 {[%clk 0:00:14.9]} 40. Nxh2 {[%clk
0:00:26.1]} 40... Nc4+ {[%clk 0:00:15.1]} 41. Ke2 {[%clk 0:00:20.5]} 41... Nxb2
{[%clk 0:00:10.1]} 42. dxe5 {[%clk 0:00:20.8]} 42... fxe5 {[%clk 0:00:08.9]} 43.
Nf3 {[%clk 0:00:20.4]} 43... Nc4 {[%clk 0:00:09.3]} 44. Ng5+ {[%clk 0:00:20.2]}
44... Kf6 {[%clk 0:00:08.7]} 45. Nf3 {[%clk 0:00:18.8]} 45... a5 {[%clk
0:00:08.6]} 46. Ne1 {[%clk 0:00:17.1]} 46... Kg5 {[%clk 0:00:07.8]} 47. Kf3
{[%clk 0:00:16.2]} 47... e4+ {[%clk 0:00:06.2]} 48. Kg3 {[%clk 0:00:16.4]} 48...
Ne5 {[%clk 0:00:06]} 49. Ng2 {[%clk 0:00:15.5]} 49... Nxg4 {[%clk 0:00:06.3]}
50. Nf4 {[%clk 0:00:15.5]} 50... Nf6 {[%clk 0:00:05.2]} 51. Ne6+ {[%clk
0:00:15.2]} 51... Kf5 {[%clk 0:00:05]} 52. Nc7 {[%clk 0:00:16.1]} 52... b4
{[%clk 0:00:04.5]} 53. cxb4 {[%clk 0:00:15.7]} 53... axb4 {[%clk 0:00:05.4]} 54.
Na6 {[%clk 0:00:16.2]} 54... d4 {[%clk 0:00:05.8]} 55. Nxb4 {[%clk 0:00:16.4]}
55... Ke5 {[%clk 0:00:05.6]} 56. Kf2 {[%clk 0:00:14]} 56... Nd7 {[%clk
0:00:04.6]} 57. a4 {[%clk 0:00:12.1]} 57... Nc5 {[%clk 0:00:04.4]} 58. Nc6+
{[%clk 0:00:11.7]} 58... Kd5 {[%clk 0:00:04.5]} 59. Ne7+ {[%clk 0:00:08.8]}
59... Kd6 {[%clk 0:00:03.4]} 60. Nf5+ {[%clk 0:00:07.3]} 60... Ke5 {[%clk
0:00:04]} 61. Ne7 {[%clk 0:00:04.6]} 61... Nxa4 {[%clk 0:00:04.4]} 62. Ke2
{[%clk 0:00:04.7]} 62... Nc3+ {[%clk 0:00:03.9]} 63. Kd2 {[%clk 0:00:05]} 63...
Kd6 {[%clk 0:00:03.9]} 64. Nf5+ {[%clk 0:00:04.8]} 64... Kc5 {[%clk 0:00:04.1]}
65. Ng7 {[%clk 0:00:03.6]} 65... Nb5 {[%clk 0:00:03.3]} 66. Ne6+ {[%clk
0:00:03.6]} 66... Kd5 {[%clk 0:00:04]} 67. Nf4+ {[%clk 0:00:03.1]} 67... Ke5
{[%clk 0:00:04]} 68. Ne2 {[%clk 0:00:03.3]} 68... Nd6 {[%clk 0:00:03.3]} 69. Nc1
{[%clk 0:00:01.9]} 69... Nc4+ {[%clk 0:00:02.2]} 70. Ke2 {[%clk 0:00:02.2]}
70... Kd5 {[%clk 0:00:03.1]} 71. Nb3 {[%clk 0:00:02.3]} 71... d3+ {[%clk
0:00:02.9]} 72. Kd1 {[%clk 0:00:02.9]} 72... e3 {[%clk 0:00:03.1]} 73. Nc1
{[%clk 0:00:02.8]} 73... Kd4 {[%clk 0:00:03.1]} 74. Nb3+ {[%clk 0:00:02.9]}
74... Kc3 {[%clk 0:00:03.7]} 75. Nc1 {[%clk 0:00:03.8]} 75... e2+ {[%clk
0:00:04.2]} 76. Nxe2+ {[%clk 0:00:03.4]} 76... Kb4 {[%clk 0:00:02.9]} 77. Nf4
{[%clk 0:00:03.5]} 77... d2 {[%clk 0:00:03]} 78. Kc2 {[%clk 0:00:03.9]} 78...
Kc5 {[%clk 0:00:01.9]} 79. Nd3+ {[%clk 0:00:04.3]} 79... Kd4 {[%clk 0:00:02.3]}
80. Nf2 {[%clk 0:00:04.8]} 80... Ke3 {[%clk 0:00:02]} 81. Nd1+ {[%clk
0:00:04.8]} 81... Ke2 {[%clk 0:00:02.6]} 82. Nc3+ {[%clk 0:00:05.3]} 82... Ke1
{[%clk 0:00:03.3]} 83. Nd1 {[%clk 0:00:05.6]} 83... Na3+ {[%clk 0:00:03.3]} 84.
Kb3 {[%clk 0:00:03.8]} 84... Kxd1 {[%clk 0:00:04.2]} 85. Kxa3 {[%clk 0:00:04.3]}
85... Ke1 {[%clk 0:00:05.1]} 86. Kb3 {[%clk 0:00:04.3]} 86... d1=Q+ {[%clk
0:00:05.6]} 87. Kc4 {[%clk 0:00:04.9]} 87... Qe2+ {[%clk 0:00:06.5]} 88. Kc5
{[%clk 0:00:05.2]} 88... Kf2 {[%clk 0:00:07.4]} 89. Kd4 {[%clk 0:00:05]} 89...
Kf3 {[%clk 0:00:07.3]} 90. Kd5 {[%clk 0:00:05.2]} 90... Qe4+ {[%clk 0:00:07.1]}
91. Kc5 {[%clk 0:00:05.2]} 91... Ke3 {[%clk 0:00:06.9]} 92. Kd6 {[%clk
0:00:05.7]} 92... Kd4 {[%clk 0:00:07.8]} 93. Kc7 {[%clk 0:00:05.1]} 93... Qe6
{[%clk 0:00:07.8]} 94. Kb7 {[%clk 0:00:04.8]} 94... Kc5 {[%clk 0:00:08.7]} 95.
Kc7 {[%clk 0:00:04.9]} 95... Qe7+ {[%clk 0:00:09.2]} 96. Kc8 {[%clk 0:00:05]}
96... Kb6 {[%clk 0:00:10.1]} 97. Kb8 {[%clk 0:00:04.4]} 97... Qf8# {[%clk
0:00:11]} 0-1

[Event "Late-Titled-Tuesday-Blitz-December-26-2023"]
[Site "Chess.com"]
[Date "2023.12.26"]
[Round "5"]
[White "Andrej2004"]
[Black "Zadar321"]
[Result "1/2-1/2"]
[WhiteElo "2563"]
[BlackElo "2426"]
[TimeControl "180+1"]
[EndTime "14:57:34 PST"]
[Termination "Game drawn by repetition"]

1. Nf3 {[%clk 0:03:00.9]} 1... Nf6 {[%clk 0:02:59.9]} 2. c4 {[%clk 0:02:59.7]}
2... e6 {[%clk 0:02:59.4]} 3. g3 {[%clk 0:02:59.6]} 3... d5 {[%clk 0:02:59.4]}
4. b3 {[%clk 0:03:00.2]} 4... d4 {[%clk 0:02:59.3]} 5. Bg2 {[%clk 0:02:59.9]}
5... c5 {[%clk 0:02:59.8]} 6. O-O {[%clk 0:02:59.9]} 6... Nc6 {[%clk 0:03:00.4]}
7. d3 {[%clk 0:03:00.5]} 7... e5 {[%clk 0:03:00.7]} 8. Nbd2 {[%clk 0:03:00.7]}
8... Be7 {[%clk 0:03:00.9]} 9. Re1 {[%clk 0:03:00.9]} 9... O-O {[%clk
0:03:00.8]} 10. h3 {[%clk 0:03:01.5]} 10... a5 {[%clk 0:03:00.7]} 11. e3 {[%clk
0:02:57.6]} 11... Re8 {[%clk 0:03:00.7]} 12. exd4 {[%clk 0:02:57.7]} 12... exd4
{[%clk 0:03:00.6]} 13. Ne5 {[%clk 0:02:57.8]} 13... Nxe5 {[%clk 0:03:00.2]} 14.
Rxe5 {[%clk 0:02:58.7]} 14... Bd6 {[%clk 0:03:00.5]} 15. Rxe8+ {[%clk
0:02:58.6]} 15... Qxe8 {[%clk 0:03:01.4]} 16. g4 {[%clk 0:02:43.8]} 16... a4
{[%clk 0:02:59.6]} 17. bxa4 {[%clk 0:02:40.8]} 17... Qxa4 {[%clk 0:02:53.8]} 18.
Qxa4 {[%clk 0:02:16.4]} 18... Rxa4 {[%clk 0:02:54.2]} 19. g5 {[%clk 0:02:17]}
19... Nh5 {[%clk 0:02:40.9]} 20. Ne4 {[%clk 0:02:16.2]} 20... Be7 {[%clk
0:02:39]} 21. Bf3 {[%clk 0:02:15.4]} 21... g6 {[%clk 0:02:37.1]} 22. a3 {[%clk
0:02:06.7]} 22... Bxh3 {[%clk 0:02:34.4]} 23. Rb1 {[%clk 0:01:51.1]} 23... Bc8
{[%clk 0:02:30]} 24. Bxh5 {[%clk 0:01:41.9]} 24... gxh5 {[%clk 0:02:29.5]} 25.
Rb5 {[%clk 0:01:42]} 25... Bf5 {[%clk 0:02:21.4]} 26. Nxc5 {[%clk 0:01:40.7]}
26... Bxc5 {[%clk 0:02:14.6]} 27. Rxc5 {[%clk 0:01:35.5]} 27... Bxd3 {[%clk
0:02:15.4]} 28. Bf4 {[%clk 0:01:27.7]} 28... Rxc4 {[%clk 0:02:13.7]} 29. Rd5
{[%clk 0:01:28]} 29... Be4 {[%clk 0:02:03.8]} 30. Rd7 {[%clk 0:01:18.9]} 30...
Kg7 {[%clk 0:01:46.5]} 31. Be5+ {[%clk 0:01:11]} 31... Kg6 {[%clk 0:01:46.3]}
32. Bxd4 {[%clk 0:01:04.3]} 32... Bc6 {[%clk 0:01:45.3]} 33. Rd6+ {[%clk
0:00:59.2]} 33... Kxg5 {[%clk 0:01:44]} 34. Be3+ {[%clk 0:00:59.4]} 34... Kg4
{[%clk 0:01:37.9]} 35. Rf6 {[%clk 0:00:47.5]} 35... Bd5 {[%clk 0:01:31.3]} 36.
Kh2 {[%clk 0:00:45.4]} 36... h4 {[%clk 0:01:26.8]} 37. Rh6 {[%clk 0:00:42]}
37... Be4 {[%clk 0:01:19.7]} 38. Rf6 {[%clk 0:00:38.3]} 38... Bg6 {[%clk
0:01:17.9]} 39. Rb6 {[%clk 0:00:37.2]} 39... Rc7 {[%clk 0:01:09.9]} 40. Rb5
{[%clk 0:00:37.4]} 40... Re7 {[%clk 0:01:04.2]} 41. Kg2 {[%clk 0:00:34.7]} 41...
h3+ {[%clk 0:01:03.6]} 42. Kh2 {[%clk 0:00:34.8]} 42... f6 {[%clk 0:01:02.5]}
43. Rb4+ {[%clk 0:00:33.6]} 43... Be4 {[%clk 0:01:00.4]} 44. Rb6 {[%clk
0:00:31.2]} 44... Bc6 {[%clk 0:00:56.8]} 45. Rb4+ {[%clk 0:00:30.2]} 45... Re4
{[%clk 0:00:57]} 46. Rb1 {[%clk 0:00:25.2]} 46... Kf3 {[%clk 0:00:56.1]} 47. Rg1
{[%clk 0:00:20.5]} 47... Bd7 {[%clk 0:00:51.4]} 48. Rg3+ {[%clk 0:00:19.5]}
48... Ke2 {[%clk 0:00:50.9]} 49. Rg7 {[%clk 0:00:20.1]} 49... Bc6 {[%clk
0:00:41.1]} 50. Kxh3 {[%clk 0:00:19.4]} 50... f5 {[%clk 0:00:33]} 51. Kg3 {[%clk
0:00:19.6]} 51... h5 {[%clk 0:00:29.9]} 52. Rh7 {[%clk 0:00:18.9]} 52... Rg4+
{[%clk 0:00:26.3]} 53. Kh3 {[%clk 0:00:17.1]} 53... Bg2+ {[%clk 0:00:25.6]} 54.
Kh2 {[%clk 0:00:16.4]} 54... h4 {[%clk 0:00:25.7]} 55. Rf7 {[%clk 0:00:12.8]}
55... Be4 {[%clk 0:00:24.8]} 56. Kh3 {[%clk 0:00:13.1]} 56... Kf1 {[%clk
0:00:20.5]} 57. Rc7 {[%clk 0:00:11.1]} 57... Ke2 {[%clk 0:00:19.2]} 58. Re7
{[%clk 0:00:10.2]} 58... Kf3 {[%clk 0:00:19.2]} 59. Rh7 {[%clk 0:00:09.2]} 59...
Rg1 {[%clk 0:00:18.6]} 60. Kh2 {[%clk 0:00:07.3]} 60... Rg2+ {[%clk 0:00:17.6]}
61. Kh3 {[%clk 0:00:07.8]} 61... f4 {[%clk 0:00:17.3]} 62. Rf7 {[%clk
0:00:08.2]} 62... Ke2 {[%clk 0:00:16.4]} 63. Rxf4 {[%clk 0:00:08.5]} 63... Bf3
{[%clk 0:00:15.6]} 64. Kxh4 {[%clk 0:00:08.1]} 64... Rg7 {[%clk 0:00:14.9]} 65.
Rf5 {[%clk 0:00:07.3]} 65... Rg4+ {[%clk 0:00:15]} 66. Kh3 {[%clk 0:00:07.3]}
66... Ra4 {[%clk 0:00:15.9]} 67. Kg3 {[%clk 0:00:07.5]} 67... Be4 {[%clk
0:00:15]} 68. Rb5 {[%clk 0:00:07.4]} 68... Bc6 {[%clk 0:00:14.9]} 69. Rb2+
{[%clk 0:00:07.4]} 69... Kd3 {[%clk 0:00:15.1]} 70. Bc5 {[%clk 0:00:07.1]} 70...
Kc3 {[%clk 0:00:14.7]} 71. Rb1 {[%clk 0:00:06.4]} 71... Kc2 {[%clk 0:00:14.3]}
72. Re1 {[%clk 0:00:05.8]} 72... Rc4 {[%clk 0:00:14.3]} 73. Bb4 {[%clk
0:00:05.9]} 73... Kb3 {[%clk 0:00:14]} 74. f4 {[%clk 0:00:06.2]} 74... Rc2
{[%clk 0:00:13.1]} 75. Kg4 {[%clk 0:00:06.6]} 75... Kc4 {[%clk 0:00:13.4]} 76.
f5 {[%clk 0:00:06.7]} 76... Kd5 {[%clk 0:00:14.1]} 77. Kg5 {[%clk 0:00:07]}
77... Rg2+ {[%clk 0:00:14.6]} 78. Kf6 {[%clk 0:00:07.4]} 78... Ba4 {[%clk
0:00:13.8]} 79. Ke7 {[%clk 0:00:06.7]} 79... Bb3 {[%clk 0:00:14.3]} 80. f6
{[%clk 0:00:06.9]} 80... Kc6 {[%clk 0:00:14.6]} 81. f7 {[%clk 0:00:06.2]} 81...
Rg7 {[%clk 0:00:14.4]} 82. Rf1 {[%clk 0:00:06.6]} 82... Kb5 {[%clk 0:00:12.3]}
83. Ke8 {[%clk 0:00:06.1]} 83... Bxf7+ {[%clk 0:00:10]} 84. Rxf7 {[%clk
0:00:07]} 84... Rxf7 {[%clk 0:00:07.8]} 85. Kxf7 {[%clk 0:00:07.9]} 85... Ka6
{[%clk 0:00:08.7]} 86. Ke7 {[%clk 0:00:08.5]} 86... Ka7 {[%clk 0:00:09.3]} 87.
Kd7 {[%clk 0:00:08.8]} 87... b5 {[%clk 0:00:10.1]} 88. Kc7 {[%clk 0:00:08.9]}
88... Ka8 {[%clk 0:00:11]} 89. Kb6 {[%clk 0:00:08.3]} 89... Kb8 {[%clk
0:00:11.9]} 90. Bc3 {[%clk 0:00:08.3]} 90... Ka8 {[%clk 0:00:12.8]} 91. Ka6
{[%clk 0:00:06]} 91... Kb8 {[%clk 0:00:13.7]} 92. Bd2 {[%clk 0:00:06.4]} 92...
Ka8 {[%clk 0:00:13.9]} 93. Be3 {[%clk 0:00:06.7]} 93... Kb8 {[%clk 0:00:13.4]}
94. Bf2 {[%clk 0:00:07.3]} 94... Ka8 {[%clk 0:00:14.3]} 95. Kb6 {[%clk
0:00:04.9]} 95... Kb8 {[%clk 0:00:15.2]} 96. Kc6 {[%clk 0:00:05.5]} 96... Ka8
{[%clk 0:00:15.6]} 97. Be3 {[%clk 0:00:05.5]} 97... Kb8 {[%clk 0:00:16]} 98. Bc5
{[%clk 0:00:06.4]} 98... Ka8 {[%clk 0:00:16.2]} 99. Bb4 {[%clk 0:00:07.3]} 99...
Kb8 {[%clk 0:00:16.6]} 100. Kd6 {[%clk 0:00:08.2]} 100... Ka8 {[%clk 0:00:16.9]}
101. Kd7 {[%clk 0:00:09.1]} 101... Ka7 {[%clk 0:00:17.3]} 102. Ke6 {[%clk
0:00:10]} 102... Ka8 {[%clk 0:00:18.1]} 103. Ke7 {[%clk 0:00:10.9]} 103... Kb8
{[%clk 0:00:18.8]} 104. Kf6 {[%clk 0:00:11.8]} 104... Ka8 {[%clk 0:00:19.7]}
105. Ke5 {[%clk 0:00:12.7]} 105... Kb8 {[%clk 0:00:20.5]} 106. Kd5 {[%clk
0:00:13.6]} 106... Ka8 {[%clk 0:00:21.3]} 107. Kc6 {[%clk 0:00:14.5]} 107... Kb8
{[%clk 0:00:22.1]} 108. Kb6 {[%clk 0:00:14.3]} 108... Ka8 {[%clk 0:00:23]} 109.
Kc6 {[%clk 0:00:14.4]} 1/2-1/2

[Event "Late-Titled-Tuesday-Blitz-December-26-2023"]
[Site "Chess.com"]
[Date "2023.12.26"]
[Round "5"]
[White "Thjop"]
[Black "Fan_Of_Chucky"]
[Result "1-0"]
[WhiteElo "2693"]
[BlackElo "2461"]
[TimeControl "180+1"]
[EndTime "14:58:12 PST"]
[Termination "Thjop won on time"]

1. e4 {[%clk 0:03:00.9]} 1... c5 {[%clk 0:03:00.1]} 2. Nf3 {[%clk 0:03:00.9]}
2... e6 {[%clk 0:03:00.7]} 3. g3 {[%clk 0:03:00.9]} 3... Nc6 {[%clk 0:02:55.8]}
4. Bg2 {[%clk 0:03:00.7]} 4... g6 {[%clk 0:02:56.4]} 5. O-O {[%clk 0:03:00.5]}
5... Bg7 {[%clk 0:02:57]} 6. c3 {[%clk 0:03:00.2]} 6... Nge7 {[%clk 0:02:56.1]}
7. d4 {[%clk 0:03:00]} 7... cxd4 {[%clk 0:02:54.8]} 8. cxd4 {[%clk 0:03:00.9]}
8... d5 {[%clk 0:02:55]} 9. e5 {[%clk 0:03:01.3]} 9... O-O {[%clk 0:02:44.7]}
10. h4 {[%clk 0:03:01]} 10... h6 {[%clk 0:02:35.8]} 11. Nc3 {[%clk 0:03:00.1]}
11... Nf5 {[%clk 0:02:34]} 12. Re1 {[%clk 0:02:59.2]} 12... a6 {[%clk
0:02:31.4]} 13. Bh3 {[%clk 0:02:59.1]} 13... b5 {[%clk 0:02:30.2]} 14. Bxf5
{[%clk 0:02:58.6]} 14... exf5 {[%clk 0:02:31.1]} 15. Bf4 {[%clk 0:02:55.4]}
15... Be6 {[%clk 0:02:30.8]} 16. Rc1 {[%clk 0:02:54.7]} 16... Qb6 {[%clk
0:02:29.5]} 17. Qd2 {[%clk 0:02:53.9]} 17... Kh7 {[%clk 0:02:27.2]} 18. Ne2
{[%clk 0:02:50.4]} 18... Rac8 {[%clk 0:02:20.8]} 19. Rc2 {[%clk 0:02:50.1]}
19... Na5 {[%clk 0:02:19.3]} 20. Rxc8 {[%clk 0:02:47]} 20... Rxc8 {[%clk
0:02:18.9]} 21. b3 {[%clk 0:02:47.3]} 21... Rc6 {[%clk 0:02:06.9]} 22. Rc1
{[%clk 0:02:45.4]} 22... Nb7 {[%clk 0:02:01.1]} 23. Rxc6 {[%clk 0:02:43.6]}
23... Qxc6 {[%clk 0:02:01.5]} 24. Kg2 {[%clk 0:02:40.3]} 24... a5 {[%clk
0:02:00.6]} 25. Nc1 {[%clk 0:02:30.3]} 25... b4 {[%clk 0:01:27.3]} 26. Nd3
{[%clk 0:02:30.1]} 26... Bf8 {[%clk 0:01:27.9]} 27. Be3 {[%clk 0:02:28.4]} 27...
Qc7 {[%clk 0:01:11.5]} 28. Nf4 {[%clk 0:02:20.8]} 28... Nd8 {[%clk 0:01:06.8]}
29. Nd3 {[%clk 0:02:02.7]} 29... Nb7 {[%clk 0:01:06.7]} 30. Nf4 {[%clk
0:01:56.8]} 30... Nd8 {[%clk 0:01:06.8]} 31. Qe2 {[%clk 0:01:57.4]} 31... Qc6
{[%clk 0:01:03.1]} 32. Qd3 {[%clk 0:01:53.7]} 32... Bd7 {[%clk 0:00:55.3]} 33.
Bd2 {[%clk 0:01:50.7]} 33... Bc8 {[%clk 0:00:50.8]} 34. h5 {[%clk 0:01:47.3]}
34... Ne6 {[%clk 0:00:31.3]} 35. hxg6+ {[%clk 0:01:43.6]} 35... fxg6 {[%clk
0:00:32.2]} 36. Nxe6 {[%clk 0:01:38.3]} 36... Bxe6 {[%clk 0:00:33.1]} 37. Ng1
{[%clk 0:01:22.3]} 37... Kg7 {[%clk 0:00:25.5]} 38. Ne2 {[%clk 0:01:21]} 38...
g5 {[%clk 0:00:23.8]} 39. f3 {[%clk 0:01:15]} 39... Be7 {[%clk 0:00:23.9]} 40.
Kf2 {[%clk 0:01:14.6]} 40... Bd8 {[%clk 0:00:23.8]} 41. Nc1 {[%clk 0:01:10.7]}
41... Bb6 {[%clk 0:00:23.6]} 42. f4 {[%clk 0:01:04.6]} 42... g4 {[%clk
0:00:23.1]} 43. Be3 {[%clk 0:01:03.6]} 43... Kg6 {[%clk 0:00:17.8]} 44. Qd1
{[%clk 0:01:00]} 44... Qc3 {[%clk 0:00:11.1]} 45. Ne2 {[%clk 0:00:57.4]} 45...
Qb2 {[%clk 0:00:07.7]} 46. Qd3 {[%clk 0:00:53.9]} 46... Bd8 {[%clk 0:00:02.2]}
47. Qd2 {[%clk 0:00:28.9]} 47... Qxd2 {[%clk 0:00:01.9]} 48. Bxd2 {[%clk
0:00:29.8]} 48... Bb6 {[%clk 0:00:01.7]} 49. Ke3 {[%clk 0:00:27.6]} 49... Kf7
{[%clk 0:00:02.3]} 50. Nc1 {[%clk 0:00:26.8]} 50... Bd7 {[%clk 0:00:02.3]} 51.
Nd3 {[%clk 0:00:18.6]} 51... Bb5 {[%clk 0:00:02.6]} 52. Nc5 {[%clk 0:00:17.9]}
52... Bxc5 {[%clk 0:00:03.2]} 53. dxc5 {[%clk 0:00:18.8]} 53... Ke6 {[%clk
0:00:03.7]} 54. Kd4 {[%clk 0:00:18.7]} 54... Bc6 {[%clk 0:00:04.3]} 55. a3
{[%clk 0:00:14.4]} 55... bxa3 {[%clk 0:00:04.7]} 56. Bxa5 {[%clk 0:00:14.2]}
56... a2 {[%clk 0:00:04.7]} 57. Bc3 {[%clk 0:00:14.7]} 57... Bb5 {[%clk
0:00:05]} 58. b4 {[%clk 0:00:14.7]} 58... h5 {[%clk 0:00:04.1]} 59. Ke3 {[%clk
0:00:14.9]} 59... Kd7 {[%clk 0:00:04.2]} 60. Kd4 {[%clk 0:00:14.6]} 60... Ke6
{[%clk 0:00:04.8]} 61. Ke3 {[%clk 0:00:15]} 61... Bc6 {[%clk 0:00:05.1]} 62. Bd4
{[%clk 0:00:14.9]} 62... Bb5 {[%clk 0:00:05.3]} 63. Kf2 {[%clk 0:00:15.4]} 63...
Kd7 {[%clk 0:00:05.3]} 64. Ke3 {[%clk 0:00:15.6]} 64... Ke6 {[%clk 0:00:05.8]}
65. Kf2 {[%clk 0:00:16.2]} 65... Kd7 {[%clk 0:00:06.3]} 66. Ke3 {[%clk
0:00:16.5]} 66... Bc6 {[%clk 0:00:06.4]} 67. Kf2 {[%clk 0:00:16.1]} 67... Kc8
{[%clk 0:00:06.1]} 68. Ke3 {[%clk 0:00:15.6]} 68... Kb7 {[%clk 0:00:04.6]} 69.
e6 {[%clk 0:00:15.3]} 69... Kc8 {[%clk 0:00:04.9]} 70. Kd2 {[%clk 0:00:14.8]}
70... Kd8 {[%clk 0:00:04.9]} 71. Bf6+ {[%clk 0:00:15.1]} 71... Ke8 {[%clk
0:00:05.2]} 72. Kc2 {[%clk 0:00:15.7]} 72... a1=Q {[%clk 0:00:03.7]} 73. Bxa1
{[%clk 0:00:15.2]} 73... Ke7 {[%clk 0:00:04.6]} 74. Bd4 {[%clk 0:00:14]} 74...
Bb5 {[%clk 0:00:04.2]} 75. Kd2 {[%clk 0:00:13.7]} 75... Kxe6 {[%clk 0:00:04.8]}
76. Ke3 {[%clk 0:00:14.3]} 76... Kd7 {[%clk 0:00:05.2]} 77. Be5 {[%clk
0:00:14.7]} 77... Kc6 {[%clk 0:00:05]} 78. Bf6 {[%clk 0:00:15.1]} 78... Bc4
{[%clk 0:00:04.5]} 79. Kd4 {[%clk 0:00:15.6]} 79... Kb5 {[%clk 0:00:03.5]} 80.
Ke5 {[%clk 0:00:15.8]} 80... Bd3 {[%clk 0:00:02.1]} 81. Kxd5 {[%clk 0:00:15.3]}
81... Be4+ {[%clk 0:00:02.8]} 82. Kd6 {[%clk 0:00:15]} 82... Bf3 {[%clk
0:00:02.8]} 83. Bh4 {[%clk 0:00:14]} 83... Be4 {[%clk 0:00:03.2]} 84. Be7 {[%clk
0:00:13.5]} 84... Bf3 {[%clk 0:00:03.4]} 85. Ke5 {[%clk 0:00:13.9]} 85... Be4
{[%clk 0:00:03.7]} 86. Kf6 {[%clk 0:00:14.3]} 86... Kc6 {[%clk 0:00:03.1]} 87.
Kg5 {[%clk 0:00:14.6]} 87... Kb5 {[%clk 0:00:03.3]} 88. Kxh5 {[%clk 0:00:15]}
88... Kc6 {[%clk 0:00:03.7]} 89. Kg5 {[%clk 0:00:15]} 89... Kb5 {[%clk
0:00:04.3]} 90. Kf6 {[%clk 0:00:15.5]} 90... Kc6 {[%clk 0:00:04.6]} 91. Ke6
{[%clk 0:00:15.9]} 91... Kb5 {[%clk 0:00:04.9]} 92. Kd6 {[%clk 0:00:14.5]} 92...
Bf3 {[%clk 0:00:04.7]} 93. Bf6 {[%clk 0:00:13.3]} 93... Be4 {[%clk 0:00:05]} 94.
Bc3 {[%clk 0:00:13.5]} 94... Bf3 {[%clk 0:00:05]} 95. Be1 {[%clk 0:00:14.1]}
95... Bc6 {[%clk 0:00:05]} 96. Ke5 {[%clk 0:00:13.4]} 96... Be4 {[%clk
0:00:05.3]} 97. Kd4 {[%clk 0:00:13.8]} 97... Bc6 {[%clk 0:00:04.1]} 98. Ke5
{[%clk 0:00:12.6]} 98... Be4 {[%clk 0:00:04.6]} 99. Bf2 {[%clk 0:00:12.1]} 99...
Kc6 {[%clk 0:00:04.4]} 100. Kd4 {[%clk 0:00:10.5]} 100... Kb5 {[%clk 0:00:04.7]}
101. Ke5 {[%clk 0:00:10.8]} 101... Kc6 {[%clk 0:00:04.1]} 102. Ke6 {[%clk
0:00:11.7]} 102... Kb5 {[%clk 0:00:04.2]} 103. Kd6 {[%clk 0:00:11.2]} 103... Bc6
{[%clk 0:00:04.3]} 104. Bd4 {[%clk 0:00:11.6]} 104... Be4 {[%clk 0:00:04.6]}
105. Be5 {[%clk 0:00:11.3]} 105... Bc6 {[%clk 0:00:04.7]} 106. Kc7 {[%clk
0:00:11.5]} 106... Be4 {[%clk 0:00:05.1]} 107. Kd6 {[%clk 0:00:09.7]} 107... Bc6
{[%clk 0:00:05.2]} 108. Ke6 {[%clk 0:00:10.1]} 108... Be4 {[%clk 0:00:06]} 109.
Bg7 {[%clk 0:00:09.2]} 109... Bc6 {[%clk 0:00:03.1]} 110. Kxf5 {[%clk
0:00:08.4]} 110... Bf3 {[%clk 0:00:02.6]} 111. Ke5 {[%clk 0:00:07.2]} 111...
Kxb4 {[%clk 0:00:03.2]} 112. Bf8 {[%clk 0:00:06.7]} 112... Kb5 {[%clk
0:00:03.4]} 113. f5 {[%clk 0:00:07.2]} 113... Kc6 {[%clk 0:00:04]} 114. Ke6
{[%clk 0:00:06.9]} 114... Bd5+ {[%clk 0:00:03.6]} 115. Ke5 {[%clk 0:00:06.9]}
115... Bf3 {[%clk 0:00:04.1]} 116. Ke6 {[%clk 0:00:02.6]} 116... Kc7 {[%clk
0:00:04.1]} 117. Bd6+ {[%clk 0:00:02.4]} 117... Kc6 {[%clk 0:00:04.3]} 118. f6
{[%clk 0:00:03]} 118... Bd5+ {[%clk 0:00:03.6]} 119. Ke7 {[%clk 0:00:03.9]} 1-0